[Event "AI Cup Div-1 2023"]
[Site "Online"]
[Date "2023.09.26"]
[Round "2.4"]
[White "Mamedyarov, Shakhriyar"]
[Black "Vachier-Lagrave, Maxime"]
[Result "0-1"]
[Annotator "TA"]
[ECO "D27"]
[WhiteElo "2734"]
[BlackElo "2727"]
[PlyCount "56"]
[EventDate "2023.09.18"]
[EventType "k.o."]
[EventCountry "NET"]
[SourceTitle "playchess.com"]
[Source "ChessBase"]
[SourceQuality "1"]
[TimeControl "900+3"]

{[%evp 16,56,17,26,19,15,9,25,13,14,16,6,22,0,0,0,0,0,0,0,12,0,2,0,151,18,0,0,48,30,48,-31,0,0,2,0,7,0,0,-117,-132,-600,-606]} 1. Nf3 {[%emt 0:00:10]} d5 {[%emt 0:00:06]} 2. d4 {[%emt 0:00:03]} Nf6 {[%emt 0:00:02]} 3. c4 {[%emt 0:00:01]} dxc4 {[%emt 0:00:01]} 4. e3 {[%emt 0:00:01]} e6 {[%emt 0:00:00]} 5. Bxc4 {[%emt 0:00:00]} a6 {[%emt 0:00:01]} 6. O-O {[%emt 0:00:01]} c5 {[%emt 0:00:00]} 7. b3 {[%emt 0:00:02]} cxd4 {[%emt 0:00:01]} 8. Nxd4 {[%emt 0:00:01]} Be7 {[%emt 0:00:01]} 9. Bb2 {[%emt 0:00:01]} O-O {[%emt 0:00:00] D27: Queen's Gambit Accepted: Classical main line: 7 e4!? and 7 a4.} 10. Nd2 {[%emt 0:00:01]} b5 {[%emt 0:00:01]} 11. Be2 {[%emt 0:00:02]} Bb7 {[%emt 0:00:01] White has an edge.} 12. Rc1 {[%emt 0:00:03]} Qd7 {[%emt 0:00:03]} 13. Bf3 {[%emt 0:00:02]} Ra7 {[%emt 0:00:14] [#]} 14. g4 $146 {[%emt 0:00:02][%cal Bg2g4,Bg4g5][%mdl 32]} ({Predecessor:} 14. Qe2 Rc8 15. Rxc8+ Bxc8 16. Ne4 Bb7 17. Nxf6+ Bxf6 18. Rd1 Qe8 19. Rc1 h6 20. h3 {½-½ Aronian,L (2742)-Vachier Lagrave,M (2747) Global Chess League rapid 2023 (1.1)}) 14... Rc8 {[%emt 0:00:02]} 15. Rxc8+ {[%emt 0:00:06]} Qxc8 {[%emt 0:00:02]} 16. g5 {[%emt 0:00:00]} Ne8 {[%emt 0:00:06]} 17. h4 {[%emt 0:00:05][%cal Bh2h4,Bh4h5][%mdl 32]} Nd6 {[%emt 0:00:49]} 18. Bg4 {[%emt 0:00:40]} Bf8 {[%emt 0:01:28]} 19. h5 {[%emt 0:00:38]} Nf5 $2 {[%emt 0:00:44] [#]} (19... Nd7 $11) 20. e4 {[%emt 0:01:19]} (20. g6 $1 $16 {[%cal Rg6f7]}) 20... Nxd4 $11 {[%emt 0:00:09]} 21. Bxd4 {[%emt 0:00:00]} Bc5 {[%emt 0:00:41]} (21... Ra8 $11 {deserves consideration.}) 22. Ba1 {[%emt 0:02:17]} Nd7 {[%emt 0:01:32][%cal Bb8d7,Bd7f6,Bf6e4][%mdl 32]} 23. Qe2 {[%emt 0:00:13]} ({Better is} 23. g6 $14) 23... Qc7 {[%emt 0:00:22] Threatens to win with ...Qg3+.} (23... Qd8 $5 {[%cal Rd8g5]} 24. Nf3 Qc7 $15) 24. Qf3 {[%emt 0:00:45] Prevents Qg3+.} Bd6 {[%emt 0:03:57]} 25. Qe3 {[%emt 0:01:03]} Ra8 {[%emt 0:00:16] Strongly threatening ...Bh2+.} 26. Nf3 {[%emt 0:00:18] Against Bh2+} Bc5 {[%emt 0:01:20]} 27. Qc3 {[%emt 0:00:05]} (27. Bd4 $1 $11 {remains equal.} Qc6 28. h6) 27... Nf6 $1 $17 {[%emt 0:00:01][%mdl 64] [#] Hoping for ...Qg3+. Double Attack} 28. Ne5 $2 {[%emt 0:03:08][%mdl 8192]} (28. Qe5 $17 Qxe5 29. Nxe5 Nxe4 30. g6) 28... Nxe4 {[%emt 0:00:16] Weighted Error Value: White=0.50/Black=0.17 (very precise)} 0-1

[Event "AI Cup Div-1 2023"]
[Site "Online"]
[Date "2023.09.27"]
[Round "3.1"]
[White "Carlsen, Magnus"]
[Black "Vachier-Lagrave, Maxime"]
[Result "1/2-1/2"]
[Annotator "TA"]
[ECO "B31"]
[WhiteElo "2839"]
[BlackElo "2727"]
[PlyCount "120"]
[EventDate "2023.09.18"]
[EventType "k.o."]
[EventCountry "NET"]
[SourceTitle "playchess.com"]
[Source "ChessBase"]
[SourceQuality "1"]
[TimeControl "900+3"]

{[%evp 16,120,12,12,18,0,0,7,6,14,35,12,7,13,10,8,11,0,31,3,21,20,19,12,7,15,4,0,0,0,0,0,0,0,0,0,0,0,0,0,0,0,0,0,0,0,15,15,15,0,0,0,0,0,0,0,0,0,0,0,0,0,0,0,0,0,0,0,0,0,0,0,0,0,0,0,0,0,0,0,0,0,0,0,0,0,0,0,0,0,0,0,0,0,0,0,0,0,0,0,0,0,0,0,0,0,0]} 1. e4 {[%emt 0:00:03]} c5 {[%emt 0:00:04]} 2. Nf3 {[%emt 0:00:01]} Nc6 {[%emt 0:00:01]} 3. Bb5 {[%emt 0:00:06]} g6 {[%emt 0:00:01]} 4. O-O {[%emt 0:00:09]} Bg7 {[%emt 0:00:01]} 5. Re1 {[%emt 0:00:01]} Nf6 {[%emt 0:00:04]} 6. c3 {[%emt 0:00:04]} O-O {[%emt 0:00:02]} 7. h3 {[%emt 0:00:19]} e5 {[%emt 0:00:03]} 8. d4 {[%emt 0:00:16]} cxd4 {[%emt 0:00:00]} 9. cxd4 {[%emt 0:00:02]} d5 {[%emt 0:00:01] 9...Nxd4 gains popularity. B31: Sicilian: 2...Nc6 3 Bb5 g6.} 10. dxe5 {[%emt 0:00:15]} Nxe4 {[%emt 0:00:03]} 11. Nc3 {[%emt 0:00:53]} Qb6 {[%emt 0:02:15]} (11... Bxe5 $2 12. Nxe5 (12. Qxd5 Nxc3 13. Qxd8 Rxd8 $11) 12... Nxe5 13. Nxd5 $18) (11... Be6 {simplifies} 12. Bxc6 bxc6 13. Be3 Nxc3 14. bxc3 Qe7) 12. Qe2 {[%emt 0:01:11] [#]} (12. Nxe4 {simplifies} dxe4 13. Bxc6 Qxc6 14. Nd4) 12... Rd8 $146 {[%emt 0:01:00]} ({Predecessor:} 12... Ng3 13. Qd3 Bf5 14. Qxd5 Nb4 15. Qb3 Nc2 16. Be3 Nxe3 17. Rxe3 Be6 18. Qa3 Rfd8 {0-1 Belenkaya,D (2299)-Samdanova,S (2060) RUS-ch Higher League (Women) 66th 2016 (1)}) 13. Bxc6 {[%emt 0:02:34]} (13. Bf4 $5 {[%cal Rc3e4]}) 13... Nxc3 {[%emt 0:01:14]} 14. bxc3 {[%emt 0:00:02]} bxc6 {[%emt 0:00:00]} 15. Bg5 {[%emt 0:00:02]} Re8 {[%emt 0:00:02]} 16. Qd2 {[%emt 0:00:03]} c5 {[%emt 0:01:25]} 17. Bf6 {[%emt 0:02:16]} Bxf6 {[%emt 0:01:20] The position is equal.} 18. exf6 {[%emt 0:00:02][%cal Re1e8] [#]} Bf5 {[%emt 0:00:02]} 19. Qf4 {[%emt 0:01:40]} Re4 $1 {[%emt 0:02:06]} (19... Qxf6 20. g4 $16) 20. Rxe4 {[%emt 0:00:08]} dxe4 {[%emt 0:00:00]} 21. Ne5 {[%emt 0:03:10]} Qxf6 {[%emt 0:00:23]} 22. Ng4 {[%emt 0:00:01]} Qxc3 {[%emt 0:00:41]} 23. Rc1 {[%emt 0:00:04] White threatens Nh6+ and mate.} Qd4 {[%emt 0:00:06] ...Bxg4 is the strong threat.} 24. Nh6+ {[%emt 0:00:03]} Kg7 {[%emt 0:00:54]} 25. Nxf5+ {[%emt 0:00:09]} gxf5 $11 {[%emt 0:00:01][%mdl 4096] Endgame KQR-KQR} 26. Qg5+ {[%emt 0:00:03]} Kh8 {[%emt 0:00:01]} 27. Qxf5 {[%emt 0:00:02]} e3 {[%emt 0:00:19]} 28. Qxf7 {[%emt 0:01:44]} Rg8 {[%emt 0:02:20]} 29. Re1 {[%emt 0:00:43]} exf2+ {[%emt 0:00:36]} 30. Qxf2 {[%emt 0:00:01]} Rf8 {[%emt 0:00:21][%mdl 64] [#] Pin} 31. Qxd4+ {[%emt 0:00:01]} cxd4 {[%emt 0:00:01] KR-KR} 32. Rd1 {[%emt 0:00:01]} Rd8 {[%emt 0:00:05]} 33. Kf2 {[%emt 0:00:01]} Rc8 {[%emt 0:00:19]} 34. Ke2 {[%emt 0:00:10]} Rc4 {[%emt 0:00:01]} 35. Rd3 {[%emt 0:00:13]} Ra4 {[%emt 0:00:25] Repels Ra3} 36. a3 {[%emt 0:00:02]} Kg7 {[%emt 0:00:01]} 37. Kf3 {[%emt 0:00:00]} Kf6 {[%emt 0:00:00]} 38. Ke4 {[%emt 0:00:00]} Ke6 {[%emt 0:00:01]} 39. g4 {[%emt 0:00:02]} h6 {[%emt 0:00:04]} 40. h4 {[%emt 0:00:02]} Ra5 {[%emt 0:00:22]} 41. h5 {[%emt 0:00:09]} Rg5 {[%emt 0:00:12]} 42. Rg3 {[%emt 0:00:06]} Rd5 {[%emt 0:00:00]} 43. Rf3 {[%emt 0:00:06]} Rg5 {[%emt 0:00:07]} 44. Rf4 {[%emt 0:00:02]} Ra5 {[%emt 0:00:02]} 45. Rf8 {[%emt 0:00:02] Black must now prevent Rh8.} Rxa3 {[%emt 0:00:02]} 46. Rh8 {[%emt 0:00:05]} Rg3 {[%emt 0:00:07]} 47. Rxh6+ {[%emt 0:00:00]} Ke7 {[%emt 0:00:00]} 48. Kf4 {[%emt 0:00:07]} d3 {[%emt 0:00:01] And now ...d2 would win.} 49. Rh7+ {[%emt 0:00:03]} (49. Kxg3 $2 d2 50. Rh7+ Ke6 51. Rxa7 (51. Rh6+ $2 Ke5 $19) 51... d1=Q 52. Ra6+ Ke5 53. Ra5+ Kd4 $19) 49... Ke6 {[%emt 0:00:01] aiming for ...d2.} 50. Rh8 {[%emt 0:00:08]} (50. Kxg3 $2 d2 51. Rxa7 (51. Rh6+ $2 Ke5 $19) 51... d1=Q 52. Ra6+ Ke5 53. Ra5+ Ke4 $19) (50. Rxa7 $5 {[%cal Rf4g3]} d2 51. Ra1 $11 (51. Kxg3 $2 d1=Q $19)) 50... Ke7 {[%emt 0:00:04] Threatens to win with ...d2.} 51. Ra8 {[%emt 0:00:04]} (51. Kxg3 $2 {is the wrong capture.} d2 52. Ra8 (52. Rh7+ $2 Kd6 $19) 52... d1=Q $19) 51... d2 {[%emt 0:00:01] ( -> ...Ra3)} 52. Rxa7+ {[%emt 0:00:00]} (52. Kxg3 $2 {perishes.} d1=Q 53. Rxa7+ Kf6 54. Ra6+ Ke5 55. Ra5+ Ke4 $19) 52... Ke6 {[%emt 0:00:01]} 53. Ra1 $1 {[%emt 0:00:02]} (53. Kxg3 $2 {too greedy.} d1=Q 54. Ra6+ Ke5 55. Ra5+ Ke4 $19) 53... Rd3 {[%emt 0:00:01]} 54. Rd1 {[%emt 0:00:00]} Kf6 {[%emt 0:00:06]} 55. g5+ {[%emt 0:00:05]} Kg7 {[%emt 0:00:01]} 56. Ke4 {[%emt 0:00:02]} Rd8 {[%emt 0:00:01]} 57. Kf4 {[%emt 0:00:03]} Rd5 {[%emt 0:00:01]} 58. Kg4 {[%emt 0:00:03]} Rd4+ {[%emt 0:00:01]} 59. Kf5 {[%emt 0:00:01]} Rd5+ {[%emt 0:00:01]} 60. Kf4 {[%emt 0:00:00]} Kh7 {[%emt 0:00:05] An even fight not without its subleties.   Weighted Error Value: White=0.03 (flawless) /Black=0.02 (flawless)} 1/2-1/2

[Event "AI Cup Div-1 2023"]
[Site "Online"]
[Date "2023.09.27"]
[Round "3.2"]
[White "Vachier-Lagrave, Maxime"]
[Black "Carlsen, Magnus"]
[Result "1/2-1/2"]
[Annotator "TA"]
[ECO "B90"]
[WhiteElo "2727"]
[BlackElo "2839"]
[PlyCount "131"]
[EventDate "2023.09.18"]
[EventType "k.o."]
[EventCountry "NET"]
[SourceTitle "playchess.com"]
[Source "ChessBase"]
[SourceQuality "1"]
[TimeControl "900+3"]

{[%evp 17,131,22,35,29,29,29,26,31,32,42,46,41,45,22,69,67,53,67,93,85,79,95,83,81,89,66,74,74,66,78,66,66,78,81,75,84,79,42,31,25,24,0,25,29,20,20,47,48,37,56,54,26,48,-4,-4,-14,-11,-114,-54,-52,-47,-48,0,0,0,0,0,-181,-14,-18,-20,-13,-16,-31,-16,-252,-239,-235,-64,-83,0,0,0,0,0,0,0,0,0,0,0,0,0,0,0,0,0,-59,-61,-116,0,0,0,0,0,0,0,0,0,0,0,0,0,0,0,0]} 1. e4 {[%emt 0:00:03]} c5 {[%emt 0:00:03]} 2. Nf3 {[%emt 0:00:02]} d6 {[%emt 0:00:02]} 3. d4 {[%emt 0:00:06]} cxd4 {[%emt 0:00:00]} 4. Nxd4 {[%emt 0:00:01]} Nf6 {[%emt 0:00:03]} 5. Nc3 {[%emt 0:00:00]} a6 {[%emt 0:00:01]} 6. Be3 {[%emt 0:00:10]} e5 {[%emt 0:00:09]} 7. Nb3 {[%emt 0:00:01]} Be6 {[%emt 0:00:03]} 8. f3 {[%emt 0:00:05]} Nbd7 {[%emt 0:01:00]} 9. g4 $1 {[%emt 0:00:17][%mdl 4] now scores much better than the old 9.Qd2.} Nb6 {[%emt 0:00:42]} 10. g5 {[%emt 0:00:04] B90: Sicilian Najdorf: Unusual White 6th moves, 6 Be3 Ng4 and 6 Be3 e5.} Nfd7 {[%emt 0:01:34]} 11. Qd2 {[%emt 0:00:13]} h6 {[%emt 0:00:54]} 12. O-O-O {[%emt 0:01:46] White has an edge.} hxg5 {[%emt 0:00:03]} 13. Bxg5 {[%emt 0:00:00]} Be7 {[%emt 0:00:02]} 14. Bxe7 {[%emt 0:00:14]} Qxe7 {[%emt 0:00:01] [#]} 15. Na5 $146 {[%emt 0:01:39]} ({Predecessor:} 15. Qxd6 Qxd6 16. Rxd6 O-O-O 17. Rd2 g6 18. Nd1 Kb8 19. Ne3 Rde8 20. Na5 Rc8 21. b3 {½-½ Sutton,A (2274)-Williamson,D (2054) GB/TC2014/5 ICCF email [31]}) 15... Rb8 {[%emt 0:02:06]} (15... O-O-O $11 {is superior.}) 16. Qxd6 $14 {[%emt 0:00:47]} Qxd6 {[%emt 0:00:02]} 17. Rxd6 {[%emt 0:00:00]} Ke7 {[%emt 0:00:06]} 18. Rd2 {[%emt 0:00:02]} Nf6 {[%emt 0:01:09]} 19. Rg1 {[%emt 0:01:15]} g6 {[%emt 0:00:02]} 20. Rg5 {[%emt 0:00:10]} Nbd7 {[%emt 0:00:48]} 21. Bc4 {[%emt 0:01:16]} Rh3 {[%emt 0:00:37]} 22. Rg3 {[%emt 0:00:31] White has more active pieces.} Rh4 {[%emt 0:00:12]} 23. b3 {[%emt 0:01:55]} Bxc4 {[%emt 0:00:51]} 24. Nxc4 {[%emt 0:00:00]} Rbh8 {[%emt 0:00:24]} 25. Rgg2 {[%emt 0:00:25]} b5 {[%emt 0:01:44]} 26. Ne3 {[%emt 0:00:29]} Nb6 {[%emt 0:00:02]} 27. a4 {[%emt 0:01:01]} bxa4 {[%emt 0:00:12]} 28. bxa4 {[%emt 0:00:00]} (28. Nxa4 {simplifies} Nxa4 29. bxa4 Ke6 30. Rgf2) 28... Rc8 {[%emt 0:00:02]} 29. Kb2 {[%emt 0:01:05]} Rb8 {[%emt 0:00:31]} 30. Ka2 {[%emt 0:00:09]} Rc8 {[%emt 0:00:03]} 31. Rd3 {[%emt 0:00:15]} Rh3 {[%emt 0:00:11]} 32. a5 {[%emt 0:00:49]} Nc4 {[%emt 0:00:33]} 33. Ncd5+ {[%emt 0:00:02]} Nxd5 {[%emt 0:00:02]} 34. Nxd5+ {[%emt 0:00:02]} Ke6 {[%emt 0:00:07]} 35. Rb3 {[%emt 0:00:33]} (35. Nb6 $1 $14 Rc5 36. Nxc4 Rxc4 37. Ka3) 35... Rc5 $11 {[%emt 0:00:09]} 36. Rc3 {[%emt 0:00:12]} Rh8 {[%emt 0:00:29]} 37. f4 {[%emt 0:00:05]} (37. Kb1 $11 {keeps the balance.}) 37... Rb8 {[%emt 0:00:35]} (37... Rxa5+ $17 38. Kb3 Nd6) 38. Rb3 $15 {[%emt 0:00:08]} Rxa5+ {[%emt 0:00:01]} 39. Kb1 {[%emt 0:00:01]} Rxb3+ {[%emt 0:00:03]} (39... Rh8 $15 {might be stronger.}) 40. cxb3 {[%emt 0:00:00][%mdl 4096] Endgame KRN-KRN} Nd6 {[%emt 0:00:00]} 41. b4 {[%emt 0:00:16]} Ra3 {[%emt 0:00:02]} 42. fxe5 $2 {[%emt 0:00:08]} (42. Nc7+ $11 Kd7 43. fxe5 Kxc7 44. Rc2+ Nc4 45. Rxc4+ Kd7 46. Kc2) 42... Nxe4 $2 {[%emt 0:00:06]} (42... Kxe5 $19 43. Nb6 Kxe4) 43. Kb2 $11 {[%emt 0:00:03]} Rf3 {[%emt 0:00:29]} 44. Nc7+ {[%emt 0:00:01]} Kxe5 {[%emt 0:00:01]} 45. Nxa6 {[%emt 0:00:00]} Kd4 {[%emt 0:00:00]} 46. Rg4 $2 {[%emt 0:00:32]} (46. Nb8 $11 {and White has nothing to worry.}) 46... Rf2+ $19 {[%emt 0:00:11]} 47. Kb3 {[%emt 0:00:01]} Rxh2 $2 {[%emt 0:00:04]} (47... g5 $1 $19 48. Rg1 f5 49. Rd1+ Ke5) 48. Nc5 $1 $15 {[%emt 0:00:06] [#]} Rh3+ {[%emt 0:00:04]} (48... Re2 $1 $17 {Hoping for ...Re3+.} 49. Nxe4 Rxe4) 49. Ka4 $11 {[%emt 0:00:10]} f5 {[%emt 0:00:24]} 50. Ne6+ {[%emt 0:00:00]} Kc4 {[%emt 0:00:01]} 51. Rxg6 {[%emt 0:00:08]} Nc3+ {[%emt 0:00:05]} 52. Ka5 {[%emt 0:00:02]} Nd5 {[%emt 0:00:01][%cal Rh3a3]} 53. Ka6 $1 {[%emt 0:00:11]} Nxb4+ {[%emt 0:00:03]} 54. Kb7 {[%emt 0:00:03]} Rh7+ {[%emt 0:00:03]} 55. Kc8 {[%emt 0:00:03]} Kd5 {[%emt 0:00:11]} 56. Ng5 {[%emt 0:00:04]} Ra7 {[%emt 0:00:05]} 57. Rb6 {[%emt 0:00:03]} (57. Ne6 $11) 57... Nd3 $15 {[%emt 0:00:06]} 58. Rb7 {[%emt 0:00:04] [#]} ({Better is} 58. Kb8 $15 Re7 59. Kc8) 58... Rxb7 {[%emt 0:00:08]} (58... Ra8+ $1 $17 59. Kc7 Nc5) 59. Kxb7 $17 {[%emt 0:00:00] KN-KN. The position is equal.} f4 {[%emt 0:00:01]} 60. Kb6 {[%emt 0:00:03]} Ne5 {[%emt 0:00:10]} 61. Kc7 {[%emt 0:00:03]} Nf7 {[%emt 0:00:06][%mdl 64] Deflection} 62. Nxf7 {[%emt 0:00:06]} f3 {[%emt 0:00:01] Strongly threatening ...f2.} 63. Nh6 {[%emt 0:00:00]} f2 {[%emt 0:00:01]} 64. Ng4 {[%emt 0:00:01]} f1=R {[%emt 0:00:07]} 65. Ne3+ {[%emt 0:00:00]} Kc5 {[%emt 0:00:01]} 66. Nxf1 {[%emt 0:00:00] Weighted Error Value: White=0.23 (precise) /Black=0.15 (very precise)} 1/2-1/2

[Event "AI Cup Div-1 2023"]
[Site "Online"]
[Date "2023.09.27"]
[Round "3.3"]
[White "Carlsen, Magnus"]
[Black "Vachier-Lagrave, Maxime"]
[Result "1-0"]
[Annotator "TA"]
[ECO "B80"]
[WhiteElo "2839"]
[BlackElo "2727"]
[PlyCount "99"]
[EventDate "2023.09.18"]
[EventType "k.o."]
[EventCountry "NET"]
[SourceTitle "playchess.com"]
[Source "ChessBase"]
[SourceQuality "1"]
[TimeControl "900+3"]

{[%evp 20,99,43,12,28,29,18,19,31,-14,-24,-16,-23,-69,36,44,52,58,73,76,77,87,102,65,86,102,63,0,0,0,0,0,33,32,55,39,45,35,132,52,58,58,62,57,56,12,47,69,85,81,152,129,133,87,240,233,237,232,229,212,193,144,178,132,243,222,216,141,182,173,179,83,107,7,8,0,330,310,1212,1106,931,902]} 1. e4 {[%emt 0:00:03]} c5 {[%emt 0:00:03]} 2. Nf3 {[%emt 0:00:02]} d6 {[%emt 0:00:01]} 3. d4 {[%emt 0:00:01]} cxd4 {[%emt 0:00:00]} 4. Nxd4 {[%emt 0:00:01]} Nf6 {[%emt 0:00:00]} 5. Nc3 {[%emt 0:00:00]} a6 {[%emt 0:00:01]} 6. Be3 {[%emt 0:00:02]} Ng4 {[%emt 0:00:04]} 7. Bc1 {[%emt 0:00:02]} Nf6 {[%emt 0:00:01]} 8. f3 {[%emt 0:00:01]} e6 {[%emt 0:00:00]} 9. Be3 {[%emt 0:00:04]} b5 {[%emt 0:00:08]} 10. Qd2 {[%emt 0:00:16]} Nbd7 {[%emt 0:00:20]} 11. g4 {[%emt 0:00:43]} b4 {[%emt 0:00:07] 11...Qc7 gains popularity. B80: Sicilian Scheveningen: 6 g3 and 6 Be3, including English Attack.} 12. Na4 {[%emt 0:00:04]} h6 {[%emt 0:00:11]} 13. O-O-O {[%emt 0:02:34]} (13. Qxb4 d5 14. Qd2 dxe4 $15) 13... Ne5 {[%emt 0:00:09] The position is equal.} 14. b3 {[%emt 0:00:46]} Bd7 $1 {[%emt 0:00:17]} 15. Nb2 {[%emt 0:00:05]} d5 {[%emt 0:01:47]} 16. Bf4 {[%emt 0:00:16] [#]} (16. Bg2 $11 {is superior.}) 16... Nxf3 {[%emt 0:00:51]} 17. Nxf3 $14 {[%emt 0:00:01][%cal Re4d5]} Nxe4 {[%emt 0:00:01]} 18. Qd4 {[%emt 0:00:01] [#]} Rg8 $146 {[%emt 0:01:54]} ({Predecessor:} 18... f6 19. Bd3 Bc5 20. Bxe4 Bxd4 21. Bg6+ Kf8 22. Rxd4 a5 23. Re1 Be8 24. Nh4 e5 25. Rd2 a4 26. bxa4 Kg8 {½-½ Anand,V (2785)-Topalov,V (2778) Sofia MTel Masters 1st 2005 (1)}) 19. Ne5 {[%emt 0:01:43] Nxd7 would be deadly.} (19. Nd3 {feels hotter.} Qa5 20. Bd2 Qxa2 21. Bxb4 Rc8 22. Qb2) 19... Bc5 {[%emt 0:01:50] [#]} 20. Qxe4 {[%emt 0:00:06]} dxe4 {[%emt 0:00:01]} 21. Nxd7 {[%emt 0:00:03] White has more active pieces. The black rooks are badly placed.} Qxd7 {[%emt 0:00:01]} 22. Rxd7 {[%emt 0:00:01]} Kxd7 {[%emt 0:00:00]} 23. Nc4 {[%emt 0:01:37]} (23. Bg2 $14) 23... g5 $11 {[%emt 0:00:58]} 24. Be5 {[%emt 0:00:09]} Ke7 {[%emt 0:00:06] Wards off Bf6+} 25. h4 {[%emt 0:00:50]} Rad8 {[%emt 0:00:37]} 26. hxg5 {[%emt 0:00:37]} Rxg5 {[%emt 0:00:02]} 27. Be2 $1 {[%emt 0:00:09]} (27. Rxh6 $2 Rxe5 28. Rh4 Red5 $19) 27... Rg6 {[%emt 0:00:37]} 28. Bf4 {[%emt 0:00:09]} Bd4 {[%emt 0:00:34]} (28... Rd5 $14) 29. Ne5 {[%emt 0:01:25]} (29. Bxh6 $6 Rh8 30. Rd1 Rgxh6 $11) (29. Rxh6 Rxh6 30. Bxh6 Rh8 $11) (29. Bd2 $1 $16) 29... Bxe5 {[%emt 0:00:04]} 30. Bxe5 {[%emt 0:00:01]} f5 {[%emt 0:00:09]} 31. gxf5 {[%emt 0:00:13]} exf5 {[%emt 0:00:02][%cal Oh6h5]} 32. Bf4 {[%emt 0:00:02]} a5 {[%emt 0:00:12]} 33. Bxh6 {[%emt 0:00:28]} Rg2 {[%emt 0:01:15][%cal Od8g8]} 34. Bf1 {[%emt 0:00:16]} Rg6 {[%emt 0:00:22]} (34... Rgg8 $142) 35. Be3 $1 $16 {[%emt 0:00:28]} Kf6 {[%emt 0:00:13]} 36. Bc4 {[%emt 0:00:12]} (36. Bb6 $142 $1 {[%cal Rb6d8]} Ra8 37. Bd4+ Kg5 38. Be2) 36... Ke5 $2 {[%emt 0:00:19]} (36... Rg4 $16 {was worth a try.}) 37. Rh7 $18 {[%emt 0:00:12]} f4 {[%emt 0:00:12]} 38. Rh5+ {[%emt 0:01:15][%mdl 64] Deflection} Kf6 {[%emt 0:00:02]} 39. Bb6 {[%emt 0:00:01]} (39. Bxf4 $2 {loses.} Rg1+ 40. Kb2 Rdd1 41. Be5+ (41. Rxa5 $2 Rb1#) 41... Kg6 $19) 39... Rd7 {[%emt 0:00:34]} 40. Bxa5 {[%emt 0:00:13] This pair of bishops is nice.} ({Not} 40. Rxa5 Rg2 $11) (40. Bb5 $18 Rd6 41. Bxa5 Rg1+ 42. Kb2) 40... Rg1+ $16 {[%emt 0:00:03]} 41. Kb2 {[%emt 0:00:02]} f3 {[%emt 0:00:00]} (41... Rg5 $16 42. Rh6+ (42. Rxg5 Kxg5 43. Bxb4 f3 $16) 42... Kg7) 42. Bxb4 $18 {[%emt 0:00:12] Hoping for Rh8.} f2 {[%emt 0:00:03]} 43. Bc3+ {[%emt 0:00:13]} Kg6 {[%emt 0:00:08]} 44. Re5 {[%emt 0:00:00]} Re1 {[%emt 0:00:03]} 45. Re6+ {[%emt 0:00:17]} (45. a4 $18 {and White stays clearly on top.}) 45... Kg5 $16 {[%emt 0:00:02]} 46. Rf6 {[%emt 0:00:42]} ({White should play} 46. Ba5 $16) 46... e3 $11 {[%emt 0:00:06]} 47. Rf8 {[%emt 0:00:00]} Rc7 $2 {[%emt 0:00:39][%mdl 8192] [#]} (47... Rdd1 $11 {and Black stays safe.}) 48. Bd4 $1 $18 {[%emt 0:00:13]} Rxc4 $2 {[%emt 0:00:08] [#]} (48... Kg4 49. Bd3 Kh3) 49. Bxe3+ $1 {[%emt 0:00:05]} Rxe3 {[%emt 0:00:06]} 50. bxc4 {[%emt 0:00:01] Beautiful play by Carlsen!   Weighted Error Value: White=0.22 (precise) /Black=0.34} 1-0